Workbook

Sheet Sheet1
A1: 课程目标达成情况数据表计算工具
A2: 考核方式 | C2: 课程目标1 | D2: 课程目标2 | E2: 课程目标3 | F2: 总分 | G2: 考核i占总成绩比例
A3: 示例 | B3: 分数分配Hij | C3: H11=30 | D3: H12=30 | E3: H13=40 | F3: 100=H11+H2+H13 | G3: Mi
B4: 目标j学生平均成绩Fij | C4: F11=25 | D4: F12=21 | E4: F13=30
B5: 目标j考核i占比Aij | C5: A11=H11/总分*Mi | D5: A12=H12/总分*Mi | E5: A13=H13/总分*Mi
A6: 过程考核方式1 | B6: 分数分配H | C6: 30 | D6: 30 | E6: 40 | F6: =C6+D6+E6 -> 100 | G6: 10%
B7: 学生平均成绩F | C7: 25 | D7: 21 | E7: 30 | I7: 填表说明： （1）课程目标1达成度=(F11项班级学生平均成绩/H11*A11+F21项班级学生平均成绩/H21*A21+┄+Fn1项班级学生平均成绩/Hn1*An1)/∑Ai1， 类似可计算课程目标2达成度, 课程目标3达成度，… （2）课程目标达成度=课程目标1达成度*∑Ai1+课程目标2达成度*∑Ai2+课程目标3达成度*∑Ai3+… （3）表中绿底单元格内容，根据课程大纲等相关材料中各考核方式在总成绩所占比重以及各种考核方式对应的目标，确定具体的分值 （4）表中黄底单元格内容，为各考核方式对应各目标学生的平均成绩；其他白底单元格中数据参考编辑公式自动生成
B8: 占比A% | C8: =C6/F6*G6 -> 3.0% | D8: =D6/F6*G6 -> 3.0% | E8: =E6/F6*G6 -> 4.0%
A9: 过程考核方式2 | B9: 分数分配H | C9: 20 | D9: 30 | E9: 50 | F9: =C9+D9+E9 -> 100 | G9: 20%
B10: 学生平均成绩F | C10: 15 | D10: 25 | E10: 40
B11: 占比A% | C11: =C9/F9*G9 -> 4.0% | D11: =D9/F9*G9 -> 6.0% | E11: =E9/F9*G9 -> 10.0%
A12: 过程考核方式3 | B12: 分数分配H | C12: 40 | D12: 30 | E12: 30 | F12: =C12+D12+E12 -> 100 | G12: 10%
B13: 学生平均成绩F | C13: 30 | D13: 25 | E13: 25
B14: 占比A% | C14: =C12/F12*G12 -> 4.0% | D14: =D12/F12*G12 -> 3.0% | E14: =E12/F12*G12 -> 3.0%
A15: 读书笔记 | B15: 分数分配H | C15: 70 | D15: 15 | E15: 15 | F15: =C15+D15+E15 -> 100 | G15: 10%
B16: 学生平均成绩F | C16: 70 | D16: 10 | E16: 10
B17: 占比A% | C17: =C15/F15*G15 -> 7.0% | D17: =D15/F15*G15 -> 1.5% | E17: =E15/F15*G15 -> 1.5%
A18: 期末考试 | B18: 分数分配H | C18: 50 | D18: 30 | E18: 20 | F18: =C18+D18+E18 -> 100 | G18: 50%
B19: 学生平均成绩F | C19: 30 | D19: 28 | E19: 12
B20: 占比A% | C20: =C18/F18*G18 -> 25.0% | D20: =D18/F18*G18 -> 15.0% | E20: =E18/F18*G18 -> 10.0%
A21: 各课程目标权重 | C21: =C8+C11+C14+C17+C20 -> 43.0% | D21: =D8+D11+D14+D17+D20 -> 28.5% | E21: =E8+E11+E14+E17+E20 -> 28.5% | G21: =G6+G9+G12+G15+G18 -> 100%
A22: 各课程目标达成情况 | C22: =(C7/C6*C8+C10/C9*C11+C13/C12*C14+C16/C15*C17+C19/C18*C20)/C21 -> 0.71 | D22: =(D7/D6*D8+D10/D9*D11+D13/D12*D14+D16/D15*D17+D19/D18*D20)/D21 -> 0.86 | E22: =(E7/E6*E8+E10/E9*E11+E13/E12*E14+E16/E15*E17+E19/E18*E20)/E21 -> 0.72
A23: 课程目标达成情况 | C23: =C22*C21+D22*D21+E22*E21 -> 0.756
